bitfinex-derivatives/quotes_ETHF0:USTF0_20210402
["timestamp","ask_amount","ask_price","bid_price","bid_amount"]
[1617352875217,1.35929187,1997.1,1996.8,68.1858]
[1617352875418,1.35929187,1997.1,1996.9,2.90695]
[1617352875617,12.1036,1997.2,1996.9,2.90695]
[1617352877419,12.1036,1997.2,1996.8,68.1858]
[1617352877420,12.1036,1997.2,1997.1,2.90695]
[1617352883528,13.1165,1997.2,1997.1,2.90695]
[1617352884326,12.1036,1997.2,1997.1,2.90695]
[1617352889027,12.1036,1997.2,1997.1,70.55615]
[1617352900343,12.1036,1997.2,1997.1,2.90695]
[1617352900545,94.6139,1997.2,1997.1,2.90695]
[1617352903747,12.1036,1997.2,1997.1,2.90695]
[1617352906247,42.1036,1997.2,1997.1,1.84765]
[1617352906448,42.1036,1997.2,1995.7,79.3022]
[1617352906449,80.0495,1997.1,1995.7,79.3022]
[1617352907648,80.0495,1997.1,1996.8,2.90695]
[1617352908550,12.1036,1997.2,1996.8,2.90695]
[1617352908955,12.1036,1997.2,1996.5,76.0188]
[1617352909551,12.1036,1997.2,1996.8,2.90695]
[1617352911652,12.1036,1997.2,1997.0,2.90695]
[1617352918660,12.1036,1997.2,1997.1,57.3862]
[1617352926266,12.1036,1997.2,1997.0,2.90695]
[1617352926867,13.3983,1997.2,1997.0,2.90695]
[1617352928768,13.3983,1997.2,1997.1,75.2478]
[1617352931171,12.1036,1997.2,1997.1,75.2478]
[1617352940878,12.9706,1997.2,1997.1,75.2478]
[1617352942080,11.2932,1997.2,1997.1,75.2478]
[1617352943780,10.2927,1997.2,1997.1,75.2478]
[1617352946785,9.2922,1997.2,1997.1,75.2478]
[1617352949888,8.722,1997.2,1997.1,75.2478]
[1617352950789,7.8916,1997.2,1997.1,75.2478]
[1617352952694,6.8911,1997.2,1997.1,75.2478]
[1617352953792,5.8906,1997.2,1997.1,75.2478]
[1617352955795,5.7456,1997.2,1997.1,75.2478]
[1617352958299,7.7527,1997.2,1997.1,75.2478]
[1617352958797,7.6727,1997.2,1997.1,75.2478]
[1617352959796,7.0624,1997.2,1997.1,75.2478]
[1617352960798,6.8773,1997.2,1997.1,75.2478]
[1617352960997,4.8702,1997.2,1997.1,75.2478]
[1617352961799,4.2049,1997.2,1997.1,75.2478]
[1617352962301,4.2049,1997.2,1997.0,2.90695]
[1617352962501,6.1803,1997.2,1997.0,2.90695]
[1617352963504,71.2363,1997.1,1997.0,2.90695]
[1617352966808,9.78882226,1997.2,1997.0,2.90695]
[1617352967609,9.08725,1997.2,1997.0,2.90695]
[1617352968310,9.78876781,1997.2,1997.0,2.90695]
[1617352969509,74.2483,1997.1,1997.0,2.90695]
[1617352979428,4.2049,1997.2,1997.0,2.90695]
[1617352979628,4.2049,1997.2,1997.0,4.42615]
[1617352981635,4.2049,1997.2,1997.1,2.0]
[1617352982831,3.2044,1997.2,1997.1,2.0]
[1617352984533,3.2044,1997.2,1997.0,4.42615]
[1617352984733,3.2044,1997.2,1997.1,2.0]
[1617352988439,3.23362462,1997.2,1997.1,2.0]
[1617352988839,3.2044,1997.2,1997.1,2.0]
[1617352989244,3.23362166,1997.2,1997.1,2.0]
[1617352989740,2.23312166,1997.2,1997.1,2.0]
[1617352990642,2.2039,1997.2,1997.1,2.0]
[1617352992449,2.2331172,1997.2,1997.1,2.0]
[1617352994950,2.2331172,1997.2,1997.0,2.90695]
[1617352995151,83.0956,1997.1,1997.0,2.90695]
[1617352995950,83.0956,1997.1,1997.0,4.90695]
[1617352996351,2.2331172,1997.2,1997.0,4.90695]
[1617352996551,2.2331172,1997.2,1997.0,6.64765]
[1617352996751,2.1277172,1997.2,1997.1,66.1982]
[1617352997453,2.1277172,1997.2,1997.1,64.1982]
[1617352998655,2.1277172,1997.2,1997.1,66.1982]
[1617352999856,2.0985,1997.2,1997.1,66.1982]
[1617353000056,2.0985,1997.2,1997.1,64.1982]
[1617353001056,2.0985,1997.2,1997.1,66.1982]
[1617353002759,2.12771321,1997.2,1997.1,66.1982]
[1617353003560,2.12771321,1997.2,1997.1,64.1982]
[1617353004457,2.12771321,1997.2,1997.1,66.1982]
[1617353004658,2.12771321,1997.2,1997.1,64.1982]
[1617353005758,2.12771321,1997.2,1997.1,66.1982]
[1617353005958,2.0985,1997.2,1997.1,66.1982]
[1617353006860,2.0985,1997.2,1997.1,64.1982]
[1617353008360,2.12769509,1997.2,1997.1,64.1982]
[1617353014467,2.0985,1997.2,1997.1,64.1982]
[1617353015967,1.0988,1997.2,1997.1,64.1982]
[1617353016970,1.0988,1997.2,1997.1,66.1982]
[1617353018871,0.0991,1997.2,1997.1,66.1982]
[1617353019271,0.0991,1997.2,1997.1,64.1982]
[1617353021871,0.41053905,1997.7,1997.1,64.1982]
[1617353022374,0.41053905,1997.7,1997.6,2.90695]
[1617353022980,60.21273905,1997.8,1997.6,2.90695]
[1617353024779,60.16283905,1997.8,1997.6,2.90695]
[1617353025882,59.16313905,1997.8,1997.6,2.90695]
[1617353027881,59.01323905,1997.8,1997.6,2.90695]
[1617353029885,58.01353905,1997.8,1997.6,2.90695]
[1617353030986,57.84363905,1997.8,1997.6,2.90695]
[1617353031887,57.84363905,1997.8,1997.6,202.90695]
[1617353032889,56.84393905,1997.8,1997.6,202.90695]
[1617353033897,56.76403905,1997.8,1997.6,202.90695]
[1617353035294,0.29188628,1997.7,1997.6,202.90695]
[1617353036896,55.05652533,1997.8,1997.6,202.90695]
[1617353037096,0.70052706,1998.0,1997.6,202.90695]
[1617353037296,65.6695,1997.9,1997.6,269.85875]
[1617353038698,65.6695,1997.9,1997.8,2.90695]
[1617353040002,65.1095,1997.9,1997.8,2.90695]
[1617353041003,65.81085778,1997.9,1997.8,2.90695]
[1617353041203,0.70135778,1997.9,1997.8,2.90695]
[1617353042616,31.61075029,1998.0,1997.8,1.02155]
[1617353042822,2.90695,1997.9,1997.8,1.02155]
[1617353043028,35.697307,1997.9,1997.8,1.02155]
[1617353043616,73.3776,1997.8,1997.6,200.0]
[1617353043822,30.0,1997.7,1997.6,200.0]
[1617353044015,31.9843335,1997.7,1997.6,200.0]
[1617353044224,31.9843335,1997.7,1997.6,198.2612]
[1617353044406,31.04989272,1997.7,1997.6,198.2612]
[1617353044807,33.95684272,1997.7,1997.6,198.2612]
[1617353046110,35.95684272,1997.7,1997.6,198.2612]
[1617353047513,33.95684272,1997.7,1997.6,198.2612]
[1617353048516,35.95684272,1997.7,1997.6,198.2612]
[1617353051118,33.04989272,1997.7,1997.6,198.2612]
[1617353052818,35.95684272,1997.7,1997.6,198.2612]
[1617353053019,36.89211018,1997.7,1997.6,198.2612]
[1617353053220,35.95684272,1997.7,1997.6,198.2612]
[1617353054021,37.12575586,1997.7,1997.6,198.2612]
[1617353055825,33.95684272,1997.7,1997.6,198.2612]
[1617353057032,37.34514278,1997.7,1997.6,198.2612]
[1617353060638,39.39433014,1997.7,1997.6,198.2612]
[1617353062840,37.34514278,1997.7,1997.6,198.2612]
[1617353063040,39.39443244,1997.7,1997.6,198.2612]
[1617353064039,41.39443244,1997.7,1997.6,198.2612]
[1617353064341,39.34514278,1997.7,1997.6,198.2612]
[1617353065441,37.12508331,1997.7,1997.6,198.2612]
[1617353067544,37.12508331,1997.7,1997.6,193.2808]
[1617353067945,37.12508331,1997.7,1997.6,190.5513]
[1617353068347,37.12508331,1997.7,1997.6,190.1114]
[1617353068548,37.12508331,1997.7,1997.6,190.0514]
[1617353069149,35.12508331,1997.7,1997.6,190.0514]
[1617353069552,33.95684272,1997.7,1997.6,190.0514]
[1617353070352,33.95684272,1997.7,1997.6,188.5553]
[1617353072154,33.95684272,1997.7,1997.6,187.3155]
[1617353072357,33.95684272,1997.7,1997.6,186.5605]
[1617353082267,35.95684272,1997.7,1997.6,183.0346]
[1617353082666,35.95684272,1997.7,1997.6,182.7828]
[1617353082867,37.12596504,1997.7,1997.6,182.7828]
[1617353083066,37.12596504,1997.7,1997.6,181.2724]
[1617353083267,35.95684272,1997.7,1997.6,176.8209]
[1617353083467,35.95684272,1997.7,1997.6,175.8109]
[1617353084268,38.00477556,1997.7,1997.6,175.8109]
[1617353085269,38.00477556,1997.7,1997.6,174.6151]
[1617353087573,35.95684272,1997.7,1997.6,174.6151]
[1617353088677,35.95684272,1997.7,1997.6,174.49]
[1617353089075,35.95684272,1997.7,1997.6,173.3882]
[1617353089277,35.95684272,1997.7,1997.6,172.6358]
[1617353089476,35.95684272,1997.7,1997.6,172.4239]
[1617353090875,38.00330389,1997.7,1997.6,171.2232]
[1617353091076,38.00330389,1997.7,1997.6,170.9731]
[1617353091276,38.00330389,1997.7,1997.6,170.853]
[1617353092277,35.95684272,1997.7,1997.6,170.853]
[1617353092679,38.00337404,1997.7,1997.6,164.3616]
[1617353092877,38.00337404,1997.7,1997.6,160.2921]
[1617353093076,38.00337404,1997.7,1997.6,158.5801]
[1617353093478,35.95684272,1997.7,1997.6,158.5801]
[1617353093677,35.95684272,1997.7,1997.6,154.8455]
[1617353093877,35.95684272,1997.7,1997.6,108.6786]
[1617353094077,35.95684272,1997.7,1997.6,108.4234]
[1617353094480,40.05073112,1997.7,1997.6,108.4234]
[1617353096978,35.95684272,1997.7,1997.6,108.4234]
[1617353097378,35.95684272,1997.7,1997.6,105.4268]
[1617353097578,40.05239458,1997.7,1997.6,105.4268]
[1617353097978,35.95684272,1997.7,1997.6,105.4268]
[1617353098179,35.95684272,1997.7,1997.6,105.0445]
[1617353098378,35.95684272,1997.7,1997.6,104.9194]
[1617353099778,35.95684272,1997.7,1997.6,101.2196]
[1617353099981,35.60684272,1997.7,1997.6,101.2196]
[1617353100781,35.60684272,1997.7,1997.6,100.7788]
[1617353101892,35.60684272,1997.7,1997.6,99.8947]
[1617353102299,35.60684272,1997.7,1997.6,97.6852]
[1617353103083,34.60674272,1997.7,1997.6,97.6852]
[1617353103899,40.03432683,1997.7,1997.6,97.6852]
[1617353104093,38.03432683,1997.7,1997.6,96.97]
[1617353104314,35.9912952,1997.7,1997.6,96.97]
[1617353104883,35.9912952,1997.7,1997.6,95.483]
[1617353105085,32.60674272,1997.7,1997.6,95.483]
[1617353105985,31.60664272,1997.7,1997.6,95.483]
[1617353107392,31.60664272,1997.7,1997.6,94.4786]
[1617353107793,31.60664272,1997.7,1997.6,93.1881]
[1617353107794,32.77030469,1997.7,1997.6,93.1881]
[1617353107993,32.77030469,1997.7,1997.6,91.2951]
[1617353108194,31.60664272,1997.7,1997.6,90.5204]
[1617353108594,33.60664272,1997.7,1997.6,90.5204]
[1617353108795,33.60664272,1997.7,1997.6,88.7846]
[1617353108994,36.98161405,1997.7,1997.6,88.7846]
[1617353109393,33.60664272,1997.7,1997.6,88.7846]
[1617353109794,36.98170092,1997.7,1997.6,86.3683]
[1617353109998,36.98170092,1997.7,1997.6,86.1182]
[1617353109999,35.98160092,1997.7,1997.6,86.1182]
[1617353110196,38.01884272,1997.7,1997.6,84.6776]
[1617353110795,35.98160092,1997.7,1997.6,84.6776]
[1617353111196,38.01961722,1997.7,1997.6,84.5747]
[1617353111896,35.98160092,1997.7,1997.6,84.5747]
[1617353112098,33.98160092,1997.7,1997.6,84.5747]
[1617353113095,34.98150092,1997.7,1997.6,84.5747]
[1617353113495,32.76937024,1997.7,1997.6,84.5747]
[1617353113695,31.60644272,1997.7,1997.6,84.5747]
[1617353113895,33.02064272,1997.7,1997.6,84.3195]
[1617353114495,36.39642855,1997.7,1997.6,84.3195]
[1617353114695,36.39642855,1997.7,1997.6,83.129]
[1617353114897,35.05827874,1997.7,1997.6,83.129]
[1617353115097,35.05827874,1997.7,1997.6,82.3834]
[1617353115300,36.39650567,1997.7,1997.6,82.3834]
[1617353115700,38.43412152,1997.7,1997.6,82.3834]
[1617353116602,36.39650567,1997.7,1997.6,82.3834]
[1617353116800,36.39650567,1997.7,1997.6,79.4941]
[1617353117000,35.39640567,1997.7,1997.6,79.4941]
[1617353117802,37.43368072,1997.7,1997.6,78.5069]
[1617353118701,37.43368072,1997.7,1997.6,77.5357]
[1617353119302,37.43368072,1997.7,1996.7,73.5842]
[1617353119303,70.6478,1997.6,1996.7,73.5842]
[1617353119603,2.90695,1996.8,1996.7,73.5842]
[1617353120003,1.90685,1996.8,1996.7,73.5842]
[1617353121305,1.90685,1996.8,1996.0,80.44265]
[1617353121705,82.7472,1996.3,1996.2,2.90695]
[1617353123708,85.65415,1996.3,1996.2,2.90695]
[1617353124109,85.23905,1996.3,1996.2,2.90695]
[1617353125109,82.3321,1996.3,1996.2,2.90695]
[1617353127013,81.332,1996.3,1996.2,2.90695]
[1617353127814,84.23895,1996.3,1996.2,2.90695]
[1617353129917,95.23895,1996.3,1996.2,2.90695]
[1617353130519,13.90695,1996.3,1996.2,2.90695]
[1617353130717,11.0,1996.3,1996.2,2.90695]
[1617353132120,11.0,1996.3,1996.2,4.90695]
[1617353132921,85.0715,1996.3,1996.2,2.90695]
[1617353134121,84.0714,1996.3,1996.2,2.90695]
[1617353139228,84.0714,1996.3,1996.2,4.90695]
[1617353139629,84.0714,1996.3,1996.2,2.90695]
[1617353141032,83.0713,1996.3,1996.2,2.90695]
[1617353142334,83.0713,1996.3,1996.2,4.90695]
[1617353143133,83.0713,1996.3,1996.2,2.90695]
[1617353143935,85.97825,1996.3,1996.2,2.90695]
[1617353144134,85.97825,1996.3,1996.2,4.90695]
[1617353144534,83.0713,1996.3,1996.2,4.90695]
[1617353148141,82.836,1996.3,1996.2,4.90695]
[1617353149341,8.7645,1996.3,1996.2,4.90695]
[1617353153656,8.7645,1996.3,1996.2,2.90695]
[1617353163162,8.7645,1996.3,1996.2,4.90695]
[1617353165865,8.7645,1996.3,1996.2,6.89115]
[1617353167671,8.7645,1996.3,1996.2,4.90695]
[1617353168271,8.82240193,1996.3,1996.2,4.90695]
[1617353170074,8.7645,1996.3,1996.2,4.90695]
[1617353171074,8.82239879,1996.3,1996.2,4.90695]
[1617353172977,8.7645,1996.3,1996.2,4.90695]
[1617353174378,8.82254457,1996.3,1996.2,4.90695]
[1617353176784,8.7645,1996.3,1996.2,4.90695]
[1617353178688,8.82250842,1996.3,1996.2,4.90695]
[1617353181591,8.7645,1996.3,1996.2,2.90695]
[1617353182191,11.67145,1996.3,1996.2,2.90695]
[1617353182893,8.7645,1996.3,1996.2,2.90695]
[1617353183292,8.82253421,1996.3,1996.2,2.90695]
[1617353183594,8.7645,1996.3,1996.2,2.90695]
[1617353185797,8.8224782,1996.3,1996.2,2.90695]
[1617353186198,8.7645,1996.3,1996.2,2.90695]
[1617353187197,10.5708,1996.3,1996.0,79.5357]
[1617353187798,0.05795416,1996.1,1996.0,79.5357]
[1617353188399,2.90695,1996.1,1996.0,82.44265]
[1617353188899,60.31585,1996.1,1996.0,82.44265]
[1617353191301,60.31585,1996.1,1996.0,80.44265]
[1617353192103,57.4089,1996.1,1996.0,80.44265]
[1617353192303,60.31585,1996.1,1996.0,80.44265]
[1617353194106,61.53355,1996.1,1996.0,80.44265]
[1617353200013,4.12465,1996.1,1996.0,80.44265]
[1617353200412,4.12465,1996.1,1996.0,77.5357]
[1617353200612,4.58770001,1996.1,1996.0,77.5357]
[1617353204613,2.90695,1996.1,1996.0,77.5357]
[1617353208516,4.49555,1996.1,1996.0,77.5357]
[1617353209617,5.49725,1996.1,1996.0,77.5357]
[1617353209817,4.49555,1996.1,1996.0,77.5357]
[1617353211018,4.95925358,1996.1,1996.0,77.5357]
[1617353211821,4.49555,1996.1,1996.0,77.5357]
[1617353213722,4.95928728,1996.1,1996.0,77.5357]
[1617353213921,4.49555,1996.1,1996.0,77.5357]
[1617353217425,4.78500406,1996.1,1996.0,77.5357]
[1617353218927,63.92680406,1996.1,1996.0,77.5357]
[1617353219328,63.63735,1996.1,1996.0,77.5357]
[1617353224737,63.92724982,1996.1,1996.0,77.5357]
[1617353226138,4.78544982,1996.1,1996.0,77.5357]
[1617353229345,4.49555,1996.1,1996.0,77.5357]
[1617353229644,4.78499082,1996.1,1996.0,77.5357]
[1617353236151,4.95878446,1996.1,1996.0,77.5357]
[1617353236951,34.49555,1996.1,1996.0,77.5357]
[1617353237151,34.49555,1996.1,1996.0,75.9076]
[1617353237351,34.49555,1996.1,1996.0,74.9516]
[1617353237551,36.49555,1996.1,1996.0,74.9516]
[1617353237751,37.42097624,1996.1,1996.0,73.1943]
[1617353237952,37.42097624,1996.1,1996.0,71.718]
[1617353238152,37.65186958,1996.1,1996.0,67.9553]
[1617353238962,37.65186958,1996.1,1996.0,67.8652]
[1617353239160,37.65186958,1996.1,1996.0,60.5131]
[1617353239361,37.65186958,1996.1,1996.0,57.6854]
[1617353240160,36.49555,1996.1,1996.0,57.6854]
[1617353242464,36.49555,1996.1,1996.0,56.7354]
[1617353243565,36.49555,1996.1,1996.0,56.3485]
[1617353244666,36.49555,1996.1,1996.0,56.0785]
[1617353244868,38.52172163,1996.1,1996.0,56.0785]
[1617353245269,38.52172163,1996.1,1996.0,54.0993]
[1617353245969,36.49555,1996.1,1996.0,54.0993]
[1617353246369,38.52354733,1996.1,1996.0,54.0993]
[1617353246568,38.52354733,1996.1,1996.0,53.8313]
[1617353246771,36.49555,1996.1,1996.0,53.8313]
[1617353247171,36.49555,1996.1,1996.0,53.7736]
[1617353247372,36.49555,1996.1,1996.0,53.0317]
[1617353247572,36.49555,1996.1,1996.0,50.0085]
[1617353247772,36.49555,1996.1,1996.0,49.7705]
[1617353249774,36.49555,1996.1,1996.0,49.7104]
[1617353250473,36.49555,1996.1,1996.0,49.5402]
[1617353250675,36.49555,1996.1,1996.0,47.7918]
[1617353250874,36.49555,1996.1,1996.0,43.5438]
[1617353251074,36.49555,1996.1,1996.0,40.8176]
[1617353251275,36.49555,1996.1,1996.0,39.8276]
[1617353251878,36.49555,1996.1,1996.0,38.828]
[1617353252077,36.49555,1996.1,1996.0,38.103]
[1617353252477,36.49555,1996.1,1996.0,37.8588]
[1617353253476,37.19021363,1996.1,1996.0,37.8588]
[1617353253877,36.49555,1996.1,1996.0,37.8588]
[1617353254478,37.1902437,1996.1,1996.0,36.8534]
[1617353254680,37.1902437,1996.1,1996.0,35.6617]
[1617353255281,37.1902437,1996.1,1996.0,34.1395]
[1617353256082,36.49555,1996.1,1996.0,32.8042]
[1617353256284,36.49555,1996.1,1996.0,32.0472]
[1617353256482,36.49555,1996.1,1996.0,31.6617]
[1617353256883,36.49555,1996.1,1996.0,30.6517]
[1617353257083,36.49555,1996.1,1996.0,30.2312]
[1617353259385,36.49555,1996.1,1996.0,29.7268]
[1617353259987,36.49555,1996.1,1996.0,28.7228]
[1617353261787,37.18735906,1996.1,1996.0,25.6948]
[1617353261986,37.18735906,1996.1,1996.0,25.1872]
[1617353262186,37.18735906,1996.1,1996.0,21.2999]
[1617353262386,37.18735906,1996.1,1996.0,21.0413]
[1617353262587,37.18735906,1996.1,1996.0,16.5641]
[1617353262786,37.18735906,1996.1,1996.0,13.875]
[1617353262988,37.18735906,1996.1,1996.0,4.6307]
[1617353263189,36.49555,1996.1,1996.0,3.9007]
[1617353263988,37.41822536,1996.1,1996.0,3.9007]
[1617353264589,36.49555,1996.1,1996.0,3.9007]
[1617353265689,37.18796983,1996.1,1996.0,3.9007]
[1617353266088,36.49555,1996.1,1996.0,3.9007]
[1617353267891,37.18803672,1996.1,1996.0,3.9007]
[1617353270294,36.49555,1996.1,1996.0,3.9007]
[1617353270695,37.18759134,1996.1,1996.0,3.9007]
[1617353271695,98.78699134,1996.1,1996.0,3.9007]
[1617353272195,98.55660663,1996.1,1996.0,3.9007]
[1617353272999,100.3835443,1996.1,1996.0,3.9007]
[1617353273395,100.55660915,1996.1,1996.0,3.9007]
[1617353273595,98.55660915,1996.1,1996.0,3.9007]
[1617353273795,98.38351918,1996.1,1996.0,3.9007]
[1617353273995,98.55679577,1996.1,1996.0,3.9007]
[1617353274197,97.55649577,1996.1,1996.0,3.9007]
[1617353274598,99.55649577,1996.1,1996.0,3.9007]
[1617353274799,33.78396604,1996.1,1996.0,3.9007]
[1617353277201,32.78366604,1996.1,1996.0,3.9007]
[1617353279104,32.9569646,1996.1,1996.0,3.9007]
[1617353281205,1.9566646,1996.1,1996.0,3.9007]
[1617353281405,31.9566646,1996.1,1996.0,3.9007]
[1617353283005,34.8636146,1996.1,1996.0,3.9007]
[1617353284207,33.8633146,1996.1,1996.0,3.9007]
[1617353285407,33.4013,1996.1,1996.0,3.9007]
[1617353286210,33.1813,1996.1,1996.0,3.9007]
[1617353288213,32.87480875,1996.1,1996.0,3.9007]
[1617353289214,31.87450875,1996.1,1996.0,3.9007]
[1617353289416,31.1807,1996.1,1996.0,3.9007]
[1617353291317,30.7354,1996.1,1996.0,3.9007]
[1617353294524,31.42902993,1996.1,1996.0,3.9007]
[1617353295324,29.63322993,1996.1,1996.0,3.9007]
[1617353295525,28.9396,1996.1,1996.0,3.9007]
[1617353296326,27.9393,1996.1,1996.0,3.9007]
[1617353296726,28.63353145,1996.1,1996.0,3.9007]
[1617353298325,28.59353145,1996.1,1996.0,3.9007]
[1617353299331,27.8993,1996.1,1996.0,3.9007]
[1617353300932,28.824319,1996.1,1996.0,3.9007]
[1617353301330,27.724,1996.1,1996.0,3.9007]
[1617353302331,27.4989,1996.1,1996.0,3.9007]
[1617353303331,27.3988,1996.1,1996.0,3.9007]
[1617353304032,28.0926079,1996.1,1996.0,3.9007]
[1617353305234,27.3988,1996.1,1996.0,3.9007]
[1617353308435,28.7021,1996.1,1996.0,3.9007]
[1617353309734,30.7021,1996.1,1996.0,3.9007]
[1617353310335,28.7021,1996.1,1996.0,3.9007]
[1617353311837,27.3988,1996.1,1996.0,3.9007]
[1617353325854,2.90695,1996.1,1996.0,3.9007]
[1617353329758,4.93699829,1996.1,1996.0,3.9007]
[1617353331258,3.93569829,1996.1,1996.0,3.9007]
[1617353332061,1.90565,1996.1,1996.0,3.9007]
[1617353332463,4.80396551,1996.1,1996.0,3.9007]
[1617353332663,1.90565,1996.1,1996.0,3.9007]
[1617353338376,0.90435,1996.1,1996.0,3.9007]
[1617353340079,38.36562552,1996.1,1996.0,3.9007]
[1617353340377,35.4674867,1996.1,1996.0,3.9007]
[1617353342279,38.36551165,1996.1,1996.0,3.9007]
[1617353344582,35.4674867,1996.1,1996.0,3.9007]
[1617353345283,34.5631367,1996.1,1996.0,3.9007]
[1617353345584,40.36832489,1996.1,1996.0,3.9007]
[1617353345986,37.4700867,1996.1,1996.0,3.9007]
[1617353352292,37.0522535,1996.1,1996.0,3.9007]
[1617353352901,38.3456535,1996.1,1996.0,3.6414]
[1617353353096,38.3456535,1996.1,1994.0,2.0]
[1617353353497,42.40135531,1996.1,1994.0,2.0]
[1617353353697,0.02894024,1994.5,1994.4,2.90695]
[1617353354097,0.28924454,1994.5,1994.4,4.90695]
[1617353355798,3.19619454,1994.5,1994.4,4.90695]
[1617353359405,2.25265085,1994.5,1994.4,4.90695]
[1617353360405,2.22377898,1994.5,1994.4,4.90695]
[1617353361205,2.22377898,1994.5,1994.4,2.90695]
[1617353361406,2.25265597,1994.5,1994.4,2.90695]
[1617353361605,2.25265597,1994.5,1993.6,2.0]
[1617353361807,0.46172952,1994.5,1993.8,2.90695]
[1617353362207,0.02885641,1994.1,1993.8,2.90695]
[1617353362611,0.02885601,1994.0,1993.8,2.90695]
[1617353363610,0.02885009,1994.1,1993.8,2.90695]
[1617353363810,2.90695,1993.9,1993.8,2.90695]
[1617353366411,1.90565,1993.9,1993.8,2.90695]
[1617353366612,1.93449347,1993.9,1993.8,2.90695]
[1617353366913,1.90565,1993.9,1993.8,2.90695]
[1617353367313,1.9344929,1993.9,1993.8,2.90695]
[1617353369114,1.90565,1993.9,1993.8,2.90695]
[1617353369314,1.93450396,1993.9,1993.8,2.90695]
[1617353370417,1.90565,1993.9,1993.8,2.90695]
[1617353372216,3.38635,1993.9,1993.8,2.90695]
[1617353373418,2.38505,1993.9,1993.8,2.90695]
[1617353374420,0.90435,1993.9,1993.8,2.90695]
[1617353380027,2.90695,1994.1,1993.8,2.90695]
[1617353380428,1.90565,1994.1,1993.8,2.90695]
[1617353381026,1.93440864,1994.1,1993.8,2.90695]
[1617353381729,1.90565,1994.1,1993.8,2.90695]
[1617353382028,2.90695,1993.9,1993.8,2.90695]
[1617353383530,4.26905,1993.9,1993.8,2.90695]
[1617353385133,5.27235,1993.9,1993.8,2.90695]
[1617353386034,5.27235,1993.9,1993.8,0.52525]
[1617353386235,5.27235,1993.9,1993.6,2.90695]
[1617353386636,35.27235,1993.9,1992.7,2.0]
[1617353386835,35.27235,1993.9,1991.3,2.0]
[1617353387035,35.27235,1993.9,1991.4,30.0]
[1617353387237,14.8807,1993.8,1991.5,2.0]
[1617353387438,57.668,1993.8,1991.5,2.0]
[1617353387637,57.668,1993.8,1991.5,32.0]
[1617353388147,57.668,1993.8,1993.3,2.90695]
[1617353389038,27.668,1993.8,1993.3,2.90695]
[1617353389838,80.717,1993.4,1993.3,2.90695]
[1617353390237,83.62395,1993.4,1993.3,2.90695]
[1617353390641,2.90695,1993.4,1993.3,2.90695]
[1617353391442,2.90695,1993.4,1993.3,4.90695]
[1617353392242,2.90695,1993.6,1993.3,4.90695]
[1617353394043,27.668,1993.8,1993.3,4.90695]
[1617353394243,27.668,1993.8,1993.7,2.90695]
[1617353394444,26.6667,1993.8,1993.7,2.90695]
[1617353395544,26.6667,1993.8,1993.7,4.90695]
[1617353396649,26.6667,1993.8,1993.7,2.90695]
[1617353397951,26.6667,1993.8,1993.7,4.90695]
[1617353398150,26.6667,1993.8,1993.7,2.90695]
[1617353398851,13.7886,1993.8,1993.7,2.90695]
[1617353400353,13.7886,1993.8,1993.7,4.90695]
[1617353400955,13.7886,1993.8,1993.7,2.90695]
[1617353403860,14.7844,1993.8,1993.7,2.90695]
[1617353404460,77.4635,1993.2,1992.5,77.0305]
[1617353404660,79.4005,1993.2,1992.5,77.0305]
[1617353404859,79.4005,1993.2,1992.5,79.0305]
[1617353406263,79.4005,1993.2,1993.1,2.90695]
[1617353406463,1.937,1993.2,1993.1,2.90695]
[1617353407465,60.0332,1993.6,1993.1,2.90695]
[1617353408267,60.0332,1993.6,1993.5,2.90695]
[1617353415676,16.96605,1993.7,1992.2,2.0]
[1617353415876,82.4022,1992.9,1992.2,2.0]
[1617353416276,82.4022,1992.9,1992.8,2.90695]
[1617353416478,2.90695,1993.0,1992.8,2.90695]
[1617353416676,2.90695,1993.0,1992.9,65.3709]
[1617353417076,14.0591,1993.7,1992.9,65.3709]
[1617353418280,14.0591,1993.7,1993.4,2.90695]
[1617353420281,2.90695,1993.5,1993.4,2.90695]
[1617353421084,81.51285,1993.5,1993.4,2.90695]
[1617353433604,2.90695,1993.5,1993.4,2.90695]
[1617353439513,77.20095,1993.5,1993.4,2.90695]
[1617353440613,77.22975792,1993.5,1993.4,2.90695]
[1617353442216,2.93575792,1993.5,1993.4,2.90695]
[1617353442815,64.003,1993.4,1992.1,32.0]
[1617353444417,64.003,1993.4,1993.1,2.90695]
[1617353444617,0.02880792,1993.5,1993.1,2.90695]
[1617353445418,76.39892568,1993.6,1993.1,2.90695]
[1617353446120,15.3243,1993.7,1993.1,2.90695]
[1617353446521,60.33275,1993.2,1993.1,2.90695]
[1617353446720,61.94675,1993.2,1993.1,2.90695]
[1617353447021,4.52095,1993.2,1993.1,2.90695]
[1617353448421,4.46085,1993.2,1993.1,2.90695]
[1617353448622,2.84685,1993.2,1993.1,2.90695]
[1617353451923,1.5122,1993.3,1993.1,2.90695]
[1617353452124,0.46181527,1993.6,1993.1,74.59675]
[1617353452525,0.46181527,1993.6,1993.5,2.90695]
[1617353452727,14.0591,1993.7,1993.5,2.90695]
[1617353454528,13.0572,1993.7,1993.5,2.90695]
[1617353454929,13.51904404,1993.7,1993.5,2.90695]
[1617353455130,81.293,1993.6,1993.5,2.90695]
[1617353460539,81.75529042,1993.6,1993.5,2.90695]
[1617353461440,80.75339042,1993.6,1993.5,2.90695]
[1617353467245,80.75339042,1993.6,1993.5,4.85855]
[1617353468447,79.2892,1993.6,1993.5,4.85855]
[1617353469249,79.75216979,1993.6,1993.5,4.85855]
[1617353470249,79.75216979,1993.6,1993.5,2.90695]
[1617353475553,78.75026979,1993.6,1993.5,2.90695]
[1617353478558,81.65721979,1993.6,1993.5,2.90695]